Cogmind - Beta 14 @@@ ROGUE MODE // 2024.08.17 @ 15:44:42 Player: Daffa0360 Result: Self-destructed Performance ------------- Evolutions (5) 2500 Regions Visited (14) 2800 Robots Destroyed (107) 535 Value Destroyed (4310) 4310 Prototype IDs (27) 540 Alien Tech Used (0) 0 Bonus (3404) 3404 TOTAL SCORE: 14089 Bonus ------- High Alert Combat Kills 226 Follower Combat Kills 298 Entered Garrisons 600 Used RIF Installer 1500 Entered DSFs 500 Aligned with FarCom 300 Friendly Fire -20 Cogmind --------- Core Integrity 309/1000 Matter 256/300 Energy 100/100 System Corruption 0% Temperature Cool (0) Movement Core (2400) Ox47 Location -5/DSF Parts ------- > --- POWER (2) -------- (None) > --- PROPULSION (2) --- (None) > --- UTILITY (10) ----- Cargo Storage Unit Gravity Neutralizer Machine Analyzer Relay Coupler [Grunt] (18) > --- WEAPON (3) ------- Mini Assault Cannon > --- INVENTORY (30) --- Improved Deuterium Engine Advanced VSS Leg Advanced Heat Sink Compact Battery (200) Improved Trap Scanner Improved Terrain Scan Processor Transmission Jammer Advanced ECM Suite Hacking Suite Hacking Suite System Shield Relay Coupler [NC] (33) Relay Coupler [NC] (30) Relay Coupler [Cutter] (23) Relay Coupler [Grunt] (23) Relay Coupler [Grunt] (25) Relay Coupler [Grunt] (33) Relay Coupler [Duelist] (33) Improved Trap Extractor (0/6) PD Laser Ion Burst Cannon Remote Datajack Plasma Cutter Peak State ------------ > --- POWER ------------ Deuterium Engine Angular Momentum Engine > --- PROPULSION ------- Improved Heavy Treads > --- UTILITY ---------- Advanced Cooling System Cargo Storage Unit Gravity Neutralizer Machine Analyzer Advanced Visual Processing Unit Layered Light Armor Plating Force Field Relay Coupler [Grunt] Relay Coupler [Hunter] > --- WEAPON ----------- PD Laser > --- INVENTORY -------- Improved Deuterium Engine Advanced VSS Leg Advanced Heat Sink Compact Battery Improved Trap Scanner Improved Terrain Scan Processor Transmission Jammer Advanced ECM Suite Hacking Suite Hacking Suite System Shield Relay Coupler [NC] Relay Coupler [NC] Relay Coupler [Cutter] Relay Coupler [Grunt] Relay Coupler [Grunt] Relay Coupler [Grunt] Relay Coupler [Duelist] Improved Trap Extractor Gatling Laser Ion Burst Cannon Ion Burst Cannon Mini Assault Cannon Remote Datajack Plasma Cutter [Rating: 89] Favorites ----------- Power Nuclear Core Engine Light Ion Engine Power Core Nuclear Core Propulsion Wheel Treads Improved Heavy Treads Wheel Wheel Utility Advanced Targeting Computer Device Kinecellerator Storage Cargo Storage Unit Processor Advanced Targeting Computer Hackware Relay Coupler [Grunt] Protection Layered Light Armor Plating Weapon Heavy Laser Energy Gun Heavy Laser Energy Cannon Ion Burst Cannon Ballistic Gun Light Assault Rifle Ballistic Cannon AWS/Autocannon Launcher Heavy Missile Launcher Special Weapon Remote Datajack Slashing Weapon Scythe Build | -11 -10 -10 -10 -9 -8 -8 -8 -7 -7 -7 -7 -6 -5 -5 ------- Run | Yrd Mat Min Exi Min Mat Gar Mat Fac Gar Fac Gar Fac Fac DSF Slots Evolved 10 | . . . . . 4 . . 2 . . . 2 2 . Power 1 | . . . . . . . . . . . . 1 . . Propulsion . | . . . . . . . . . . . . . . . Utility 8 | . . . . . 3 . . 2 . . . 1 2 . Weapon 1 | . . . . . 1 . . . . . . . . . Parts Attached 96 | 5 3 1 4 4 5 5 13 7 14 . 3 26 3 3 Power 9 | 1 . . . . 1 . 1 1 1 . . 4 . . Engine 5 | 1 . . . . . . . 1 . . . 3 . . Core 4 | . . . . . 1 . 1 . 1 . . 1 . . Reactor . | . . . . . . . . . . . . . . . Propulsion 8 | 2 1 . 1 . . . 2 . 1 . . 1 . . Treads 2 | . . . . . . . . . 1 . . 1 . . Leg . | . . . . . . . . . . . . . . . Wheel 6 | 2 1 . 1 . . . 2 . . . . . . . Hover . | . . . . . . . . . . . . . . . Flight . | . . . . . . . . . . . . . . . Utility 27 | . 1 1 . 1 3 . 5 5 6 . . 2 3 . Device 12 | . . 1 . . 2 . 2 2 3 . . . 2 . Storage 2 | . . . . . . . 1 . 1 . . . . . Processor 4 | . . . . . 1 . 1 1 1 . . . . . Hackware 4 | . . . . . . . . 1 1 . . 2 . . Protection 5 | . 1 . . 1 . . 1 1 . . . . 1 . Artifact . | . . . . . . . . . . . . . . . Weapon 52 | 2 1 . 3 3 1 5 5 1 6 . 3 19 . 3 Energy Gun 15 | . . . . 1 . . 3 1 3 . 1 5 . 1 Energy Cannon 7 | . . . 2 . . . . . . . . 4 . 1 Ballistic Gun 6 | 2 1 . 1 1 . . 1 . . . . . . . Ballistic Cannon 6 | . . . . 1 1 3 . . . . . . . 1 Launcher 4 | . . . . . . . . . 1 . 1 2 . . Special Weapon 4 | . . . . . . . . . . . . 4 . . Impact Weapon . | . . . . . . . . . . . . . . . Slashing Weapon 10 | . . . . . . 2 1 . 2 . 1 4 . . Piercing Weapon . | . . . . . . . . . . . . . . . Special Melee Weapon . | . . . . . . . . . . . . . . . Unidentified Prototypes 4 | . . . . . . . . 1 1 . . 1 . 1 Parts Lost 23 | . . . . . . . 2 . 1 . . 10 . 10 Power 5 | . . . . . . . . . . . . 3 . 2 Propulsion 2 | . . . . . . . . . . . . 1 . 1 Utility 9 | . . . . . . . 2 . 1 . . 1 . 5 Weapon 7 | . . . . . . . . . . . . 5 . 2 Highest Loss Streak 10 | . . . . . . . 1 . 1 . . 4 . 10 To Critical Strikes 1 | . . . . . . . . . . . . 1 . . Average Slot Usage (%) 82 | . 80 100 100 99 70 80 86 85 88 84 84 77 63 68 Engine 3 | . 14 14 14 14 . . . 5 3 . . 5 11 8 Core 5 | . . . . . 8 9 9 1 3 7 7 4 . . Treads 2 | . . . . . . . . . 2 7 7 6 5 3 Wheel 10 | . 28 28 28 28 18 18 16 7 4 . . . . . Device 14 | . . 14 14 14 21 27 22 20 7 7 7 6 8 15 Storage 5 | . . . . . . . 8 7 7 7 7 6 5 5 Processor 12 | . . . . . 4 9 9 9 21 23 23 18 11 10 Hackware 4 | . . . . . . . . 1 8 7 7 12 11 9 Protection 4 | . 9 14 14 14 9 9 3 7 3 . . . 1 4 Energy Gun 7 | . . . . 7 . . 8 15 16 15 16 6 5 4 Energy Cannon 1 | . . . 1 . . . . . . . . 6 . . Ballistic Gun 2 | . 28 28 26 19 . . 2 . . . . . . . Ballistic Cannon 2 | . . . . . 9 8 4 . . . . . . 2 Slashing Weapon 1 | . . . . . . . 1 7 5 7 2 . . . Peak Build Rating 89 | 5 6 9 18 18 50 50 50 51 61 60 62 76 89 89 Average Rating 49 | 4 5 8 11 15 47 49 41 47 52 60 60 69 78 75 On Entrance 39 | . 5 6 9 12 18 50 50 41 50 60 60 62 74 89 Naked Turns . | . . . . . . . . . . . . . . . Heaviest Build 185 | 5 8 9 18 15 78 78 114 76 158 156 161 175 185 185 Greatest Support 87 | 20 20 20 26 26 26 26 28 37 87 87 87 87 87 87 Greatest Overweight (x) 53 | . . . . . 2 2 4 2 2 1 1 2 2 53 Average Overweight (x) 1 | . . . . . 2 1 2 1 1 1 1 1 1 4 Largest Inventory Capacity 30 | 5 5 5 5 5 5 5 20 20 30 30 30 30 30 30 Average Capacity 19 | 5 5 5 5 5 5 5 19 20 23 30 30 30 30 30 Most Carried 30 | 2 5 4 5 5 5 5 20 20 30 30 30 30 28 28 Average Carried 16 | . 3 3 4 4 3 4 12 19 21 30 29 26 25 25 Final Capacity 30 | 5 5 5 5 5 5 5 20 20 30 30 30 30 30 30 Final Carried 30 | 2 4 4 5 5 5 5 19 20 30 30 30 25 25 25 Class Distribution -------------------- 33% | Skirmisher 25% | Bothacker-Skirmisher 21% | Mutant 9% | Bothacker-Assassin 3% | Assassin Dominant Class ---------------- Mutant | -10/Materials Mutant | -10/Mines Mutant | -10/Exiles Skirmisher | -9/Mines Skirmisher | -8/Materials Skirmisher | -8/Garrison Skirmisher | -8/Materials Mutant | -7/Factory Bothacker-Assassin | -7/Garrison Bothacker-Assassin | -7/Factory Bothacker-Skirmisher | -7/Garrison Bothacker-Skirmisher | -6/Factory Bothacker-Skirmisher | -5/Factory Bothacker-Skirmisher | -5/DSF Resources | -11 -10 -10 -10 -9 -8 -8 -8 -7 -7 -7 -7 -6 -5 -5 ----------- Run | Yrd Mat Min Exi Min Mat Gar Mat Fac Gar Fac Gar Fac Fac DSF Matter Collected 1549 | 306 18 36 . 88 50 30 229 83 369 . 44 282 . 14 Remotely . | . . . . . . . . . . . . . . . Salvage Created 3943 | 74 44 . . 50 316 370 656 159 1527 . 158 524 . 65 Parts 176 | 9 8 . . 6 32 18 35 5 34 . 7 16 . 6 Haulers Intercepted 1 | . . . . . . . 1 . . . . . . . Recyclers Shooed 1 | . . . . . . . . . . . . 1 . . Parts Field Recycled . | . . . . . . . . . . . . . . . Retrieved Matter . | . . . . . . . . . . . . . . . Parts Self-Destructed . | . . . . . . . . . . . . . . . Prevented . | . . . . . . . . . . . . . . . Kills | -11 -10 -10 -10 -9 -8 -8 -8 -7 -7 -7 -7 -6 -5 -5 ------- Run | Yrd Mat Min Exi Min Mat Gar Mat Fac Gar Fac Gar Fac Fac DSF Combat Hostiles Destroyed 92 | 1 3 . . 3 14 17 15 2 21 . 4 11 . 1 Guns 42 | 1 3 . . 3 . . 14 2 11 . 2 5 . 1 Cannons 36 | . . . . . 14 17 1 . . . . 4 . . AOE 11 | . . . . . . . . . 8 . 1 2 . . Classes Destroyed 14 | 2 1 . . . 4 1 3 . 2 . . . . 1 Worker 2 | . . . . . . . 1 . . . . 1 . . Tunneler 3 | 3 . . . . . . . . . . . . . . Hauler 1 | . . . . . . . 1 . . . . . . . Recycler 3 | . . . . . . . 1 1 . . . 1 . . Operator 2 | . . . . . 1 . 1 . . . . . . . Watcher 4 | . . . . . 4 . . . . . . . . . Swarmer 28 | . 3 . . 3 5 7 5 . . . 2 3 . . Grunt 36 | 1 . . . . 5 5 5 1 16 . . 3 . . Brawler 2 | . . . . . . . . . 2 . . . . . Duelist 3 | . . . . . . . . . 1 . 1 1 . . Sentry 15 | . . . . . 3 3 5 . 1 . 1 2 . . Specialist 1 | . . . . . . . . . . . . . . 1 Hunter 3 | . . . . . 1 1 . . 1 . . . . . Programmer 4 | . . . . . . 1 . 1 . . . 2 . . Best Kill Streak 10 | 2 3 . . 3 3 5 3 1 10 . 2 4 . 1 Combat Bots Only 10 | 1 3 . . 3 3 5 3 1 10 . 2 3 . 1 Max Kills in Single Turn 2 | 1 1 . . 1 1 1 1 1 2 . 1 2 . 1 Gunslinging . | . . . . . . . . . . . . . . . Exploded 2 | . . . . . . . . . 2 . 1 1 . . Melee . | . . . . . . . . . . . . . . . Uniques/NPCs Destroyed . | . . . . . . . . . . . . . . . Combat | -11 -10 -10 -10 -9 -8 -8 -8 -7 -7 -7 -7 -6 -5 -5 -------- Run | Yrd Mat Min Exi Min Mat Gar Mat Fac Gar Fac Gar Fac Fac DSF Hostile Shots Fired 612 | 3 12 . . 9 29 29 69 6 91 . 4 227 . 133 Missed 187 | 1 3 . . 4 6 9 14 3 35 . 3 68 . 41 Damage Taken 6110 | 21 78 . . 44 227 155 573 118 714 . 51 1774 . 2355 Core 1398 | 21 29 . . . 46 12 72 16 127 . 10 374 . 691 Absorbed by Shields 327 | . . . . . 52 59 122 . 9 . . . . 85 Reduced by Siege Mode 52 | . . . . . . . . . . . . 4 . 48 Regen/Repaired (Parts) 113 | . . . . . . . 113 . . . . . . . Core Remaining (%) 76 | 91 . . . 80 . . 76 . . . 78 56 . . Volleys Fired 188 | 28 7 . . 4 . . 38 4 51 . 10 38 . 8 Largest 3 | 2 2 . . 2 . . 3 2 3 . 3 3 . 3 Hottest 285 | 40 40 . . 40 . . 159 89 158 . 158 285 . 228 Shots Fired 478 | 56 14 . . 8 47 32 94 8 110 . 21 70 . 18 Gun 337 | 56 14 . . 8 . . 90 8 94 . 20 38 . 9 Cannon 115 | . . . . . 47 32 4 . . . . 23 . 9 Launcher 20 | . . . . . . . . . 16 . 1 3 . . Special 6 | . . . . . . . . . . . . 6 . . Kinetic 195 | 56 14 . . 8 47 32 30 . . . . . . 8 Thermal 257 | . . . . . . . 64 8 94 . 20 61 . 10 Explosive 20 | . . . . . . . . . 16 . 1 3 . . Electromagnetic . | . . . . . . . . . . . . . . . Robot Hit Streak 32 | 4 2 . . 5 16 20 27 13 32 . 5 13 . 20 Robot Miss Streak 5 | 5 3 . . 1 4 1 3 . 1 . 2 3 . 4 Penetration Max . | . . . . . . . . . . . . . . . Secondary Targets 3 | . . . . 1 . . . . 1 . . 1 . . Max Gunslinging Chain 1 | . . . . 1 . . . . 1 . . 1 . . Autonomous 90 | . . . . . 47 32 5 . . . . 1 . 5 Shots Hit Robots 382 | 31 5 . . 6 34 30 71 8 123 . 12 47 . 15 Core Hits 167 | 7 4 . . 4 11 10 36 5 50 . 5 28 . 7 Critical Kills . | . . . . . . . . . . . . . . . Critical Parts Destroyed . | . . . . . . . . . . . . . . . Critical Strikes 16 | . . . . . 3 5 . . 4 . 2 1 . 1 Burn 6 | . . . . . . . . . 3 . 2 1 . . Blast 9 | . . . . . 3 5 . . . . . . . 1 Sever 1 | . . . . . . . . . 1 . . . . . Melee Attacks 66 | . . . . . . 6 8 5 33 . 2 12 . . Impact . | . . . . . . . . . . . . . . . Slashing 66 | . . . . . . 6 8 5 33 . 2 12 . . Piercing . | . . . . . . . . . . . . . . . Sneak Attacks . | . . . . . . . . . . . . . . . Combat Hostiles . | . . . . . . . . . . . . . . . Follow-up Attacks . | . . . . . . . . . . . . . . . Damage Inflicted 15280 | 257 38 . . 56 3042 2887 1655 159 4671 . 329 1697 . 489 Guns 4474 | 257 38 . . 56 . . 1269 159 1644 . 250 503 . 298 Cannons 7365 | . . . . . 3042 2887 386 . . . . 859 . 191 Explosions 1583 | . . . . . . . . . 1169 . 79 335 . . Melee 1858 | . . . . . . . . . 1858 . . . . . Ramming . | . . . . . . . . . . . . . . . Kinetic 7157 | 257 38 . . 56 3042 2887 686 . . . . . . 191 Thermal 4682 | . . . . . . . 969 159 1644 . 250 1362 . 298 Explosive 1583 | . . . . . . . . . 1169 . 79 335 . . Electromagnetic . | . . . . . . . . . . . . . . . Impact . | . . . . . . . . . . . . . . . Slashing 1858 | . . . . . . . . . 1858 . . . . . Piercing . | . . . . . . . . . . . . . . . Highest Corruption 1 | . . . . . . 1 1 . . . . . . . Average Corruption 1 | . . . . . . 1 1 . . . . . . . Corruption Purged . | . . . . . . . . . . . . . . . Corruption Blocked . | . . . . . . . . . . . . . . . Effects 19 | . . . . . . 1 18 . . . . . . . Message Errors 1 | . . . . . . . 1 . . . . . . . Matter Fused 5 | . . . . . . . 5 . . . . . . . Heat Flow Errors 3 | . . . . . . . 3 . . . . . . . Energy Discharges 3 | . . . . . . 1 2 . . . . . . . Data Loss (minor) 2 | . . . . . . . 2 . . . . . . . Data Loss (major) 4 | . . . . . . . 4 . . . . . . . Alerts 1 | . . . . . . . 1 . . . . . . . Overload Shots 3 | . . . . . . . . . 3 . . . . . Overflow Damage 1379 | . . . . . 564 731 48 . 20 . . 16 . . Projectiles 1359 | . . . . . 564 731 48 . . . . 16 . . Explosions 20 | . . . . . . . . . 20 . . . . . Melee . | . . . . . . . . . . . . . . . Knockbacks 12 | . . . . . 5 7 . . . . . . . . Impact . | . . . . . . . . . . . . . . . Kinetic 11 | . . . . . 5 6 . . . . . . . . Secondary 1 | . . . . . . 1 . . . . . . . . Self-Inflicted Damage . | . . . . . . . . . . . . . . . Shots . | . . . . . . . . . . . . . . . Rammed . | . . . . . . . . . . . . . . . Targets Rammed . | . . . . . . . . . . . . . . . Kicked . | . . . . . . . . . . . . . . . Crushed . | . . . . . . . . . . . . . . . Highest Temperature 420 | 12 12 . . 12 8 . 392 . 264 . 228 420 . 28 Average Temperature 103 | 9 6 . . 6 8 . 117 . 60 . 83 136 . 12 Received Heat Transfer 1433 | 12 . . . . 48 24 218 . 414 . 6 342 . 369 Effects 4 | . . . . . . . 2 . 1 . . 1 . . Energy Bleed 3 | . . . . . . . 2 . 1 . . . . . Damage (minor) 1 | . . . . . . . . . . . . 1 . . Siege Activations 5 | . . . . . . . . . 1 . . 3 . 1 Total Turns 53 | . . . . . . . . . 1 . . 36 . 16 Longest Duration 18 | . . . . . . . . . 1 . . 18 . 16 Robots Corrupted . | . . . . . . . . . . . . . . . Combat Hostiles . | . . . . . . . . . . . . . . . Parts Fried 1 | . . . . . . . . . . . 1 . . . Impact Corruptions 2 | . . . . . . 2 . . . . . . . . Robots Melted 3 | . . . . . . . . . 2 . 1 . . . Combat Hostiles 3 | . . . . . . . . . 2 . 1 . . . Parts Melted 20 | . . . . . . . 2 1 9 . 3 5 . . Heat Transferred 8858 | . . . . . . . 2277 296 3156 . 629 1950 . 550 Parts Sabotaged . | . . . . . . . . . . . . . . . Parts Stolen . | . . . . . . . . . . . . . . . Parts Stripped . | . . . . . . . . . . . . . . . Power Chain Reactions . | . . . . . . . . . . . . . . . Alert | -11 -10 -10 -10 -9 -8 -8 -8 -7 -7 -7 -7 -6 -5 -5 ------- Run | Yrd Mat Min Exi Min Mat Gar Mat Fac Gar Fac Gar Fac Fac DSF Peak Influence 792 | 30 120 46 . 70 327 621 302 123 792 415 563 399 24 45 Initial 415 | . 3 46 . . 27 . 302 98 25 415 290 295 14 16 Average 192 | 15 61 46 . 60 159 250 109 80 485 415 472 117 18 14 Maximum Alert Level 3 | . . . . . 1 2 1 . 3 2 2 1 . . Low Security (%) 65 | 100 100 100 . 100 73 46 84 100 22 . . 71 100 100 Level 1 16 | . . . . . 26 23 15 . 3 . 27 28 . . Level 2 16 | . . . . . . 29 . . 56 100 72 . . . Level 3 2 | . . . . . . . . . 17 . . . . . Level 4 . | . . . . . . . . . . . . . . . Level 5 . | . . . . . . . . . . . . . . . High Security . | . . . . . . . . . . . . . . . Max Security . | . . . . . . . . . . . . . . . Squads Dispatched 16 | . 1 . . . 2 . 3 2 . . . 5 1 2 Investigation 4 | . 1 . . . 1 . 1 1 . . . . . . Extermination 5 | . . . . . . . . 1 . . . 3 1 . Reinforcement 6 | . . . . . 1 . 2 . . . . 1 . 2 Assault 1 | . . . . . . . . . . . . 1 . . Garrison . | . . . . . . . . . . . . . . . Intercept . | . . . . . . . . . . . . . . . Searches Triggered . | . . . . . . . . . . . . . . . Construction Impeded 1 | . . . . . . . . . . . . 1 . . Haulers Reinforced . | . . . . . . . . . . . . . . . Active Scanning Responses . | . . . . . . . . . . . . . . . Cargo Convoy Interrupts . | . . . . . . . . . . . . . . . Stealth | -11 -10 -10 -10 -9 -8 -8 -8 -7 -7 -7 -7 -6 -5 -5 --------- Run | Yrd Mat Min Exi Min Mat Gar Mat Fac Gar Fac Gar Fac Fac DSF Distress Signals 4 | . . . . . 3 . 1 . . . . . . . Communications Jammed . | . . . . . . . . . . . . . . . Distress Signals . | . . . . . . . . . . . . . . . Times Spotted 126 | 1 6 . . 3 23 16 26 2 20 . 7 15 . 7 Peak Tracking Total 7 | 1 4 . . 3 7 5 6 2 7 . 2 3 1 6 Tactical Retreats 9 | . . . . . 3 1 3 . 1 . . 1 . . Traps | -11 -10 -10 -10 -9 -8 -8 -8 -7 -7 -7 -7 -6 -5 -5 ------- Run | Yrd Mat Min Exi Min Mat Gar Mat Fac Gar Fac Gar Fac Fac DSF Traps Triggered 16 | . 1 . . . . 6 1 1 6 . . 1 . . Indirectly . | . . . . . . . . . . . . . . . Trap Hack Attempts . | . . . . . . . . . . . . . . . Triggered . | . . . . . . . . . . . . . . . Disarmed . | . . . . . . . . . . . . . . . Reprogrammed . | . . . . . . . . . . . . . . . Reused . | . . . . . . . . . . . . . . . Traps Extracted . | . . . . . . . . . . . . . . . Installed . | . . . . . . . . . . . . . . . Triggered . | . . . . . . . . . . . . . . . Machines | -11 -10 -10 -10 -9 -8 -8 -8 -7 -7 -7 -7 -6 -5 -5 ---------- Run | Yrd Mat Min Exi Min Mat Gar Mat Fac Gar Fac Gar Fac Fac DSF Machines Disabled 7 | . . . . . . 2 1 . 4 . . . . . Max in Single Turn 1 | . . . . . . 1 1 . 1 . . . . . Garrison Access 1 | . . . . . . . . . . . . 1 . . Garrison Relay 3 | . . . . . . . . . 3 . . . . . Machines Repaired . | . . . . . . . . . . . . . . . Machines Dismantled . | . . . . . . . . . . . . . . . Machines Sabotaged . | . . . . . . . . . . . . . . . Overloaded Fab Kills . | . . . . . . . . . . . . . . . Hacking | -11 -10 -10 -10 -9 -8 -8 -8 -7 -7 -7 -7 -6 -5 -5 --------- Run | Yrd Mat Min Exi Min Mat Gar Mat Fac Gar Fac Gar Fac Fac DSF Machines Accessed 23 | . 2 . 1 1 4 3 4 3 . 1 1 2 1 . Terminals 15 | . 2 . . . 3 3 2 2 . . 1 1 1 . Fabricators . | . . . . . . . . . . . . . . . Repair Stations 2 | . . . . . . . 2 . . . . . . . Recycling Units . | . . . . . . . . . . . . . . . Scanalyzers 1 | . . . . . . . . . . . . 1 . . Garrison Access 3 | . . . . . 1 . . 1 . 1 . . . . Total Hacks 57 | . 7 . 1 1 11 7 14 7 . 1 3 3 2 . Successful 29 | . 3 . 1 1 7 2 9 3 . 1 . 1 1 . Failed 28 | . 4 . . . 4 5 5 4 . . 3 2 1 . Catastrophic 5 | . . . . . 1 1 2 . . . 1 . . . Database Lockouts . | . . . . . . . . . . . . . . . Manual 6 | . . . 1 . 5 . . . . . . . . . Terminals 38 | . 7 . . . 8 7 5 5 . . 3 1 2 . Fabricators . | . . . . . . . . . . . . . . . Repair Stations 9 | . . . . . . . 9 . . . . . . . Recycling Units . | . . . . . . . . . . . . . . . Scanalyzers 2 | . . . . . . . . . . . . 2 . . Garrison Access 6 | . . . . . 3 . . 2 . 1 . . . . Terminal Hacks 18 | . 3 . 1 1 4 2 5 1 . . . . 1 . Record 3 | . 3 . . . . . . . . . . . . . Open Door 1 | . . . . 1 . . . . . . . . . . Open DSF 2 | . . . . . . . . 1 . . . . 1 . Emergency Access Points 1 | . . . . . . 1 . . . . . . . . Alert Level 5 | . . . . . 2 . 3 . . . . . . . Unreport Threat 4 | . . . . . 2 . 2 . . . . . . . Patrol Navigation 1 | . . . . . . 1 . . . . . . . . Derelict Proto ID Bank 1 | . . . 1 . . . . . . . . . . . Fabricator Hacks . | . . . . . . . . . . . . . . . Repair Station Hacks 4 | . . . . . . . 4 . . . . . . . Scan Component 2 | . . . . . . . 2 . . . . . . . Repair 2 | . . . . . . . 2 . . . . . . . Recycling Unit Hacks . | . . . . . . . . . . . . . . . Scanalyzer 1 | . . . . . . . . . . . . 1 . . Insert Component 1 | . . . . . . . . . . . . 1 . . Garrison Access Hacks 4 | . . . . . 1 . . 2 . 1 . . . . Unlock Access 3 | . . . . . 1 . . 1 . 1 . . . . Coupler Status 1 | . . . . . . . . 1 . . . . . . Unauthorized Hacks 2 | . . . . . 2 . . . . . . . . . Terminals 2 | . . . . . 2 . . . . . . . . . Assimilate 1 | . . . . . 1 . . . . . . . . . Botnet 1 | . . . . . 1 . . . . . . . . . Fabricators . | . . . . . . . . . . . . . . . Repair Stations . | . . . . . . . . . . . . . . . Recycling Units . | . . . . . . . . . . . . . . . Scanalyzers . | . . . . . . . . . . . . . . . Garrison Access . | . . . . . . . . . . . . . . . Data Cores Recovered 1 | . . . . . 1 . . . . . . . . . Used 1 | . . . . . 1 . . . . . . . . . Hacking Detections 16 | . 2 . . . 4 3 3 2 . . 1 1 . . Full Trace Events 4 | . . . . . 1 1 . 1 . . 1 . . . Feedback Events . | . . . . . . . . . . . . . . . Feedback Blocked . | . . . . . . . . . . . . . . . Robot Schematics Acquired . | . . . . . . . . . . . . . . . Robots Built . | . . . . . . . . . . . . . . . Authchips . | . . . . . . . . . . . . . . . Time . | . . . . . . . . . . . . . . . Total Robot Build Rating . | . . . . . . . . . . . . . . . Part Schematics Acquired . | . . . . . . . . . . . . . . . Parts Built . | . . . . . . . . . . . . . . . Authchips . | . . . . . . . . . . . . . . . Time . | . . . . . . . . . . . . . . . Total Part Build Rating . | . . . . . . . . . . . . . . . Parts Repaired 2 | . . . . . . . 2 . . . . . . . Time 76 | . . . . . . . 76 . . . . . . . Parts Recycled . | . . . . . . . . . . . . . . . Recycled Matter . | . . . . . . . . . . . . . . . Retrieved Matter . | . . . . . . . . . . . . . . . Retrieved Components . | . . . . . . . . . . . . . . . Parts Scanalyzed . | . . . . . . . . . . . . . . . Part Schematics Acquired . | . . . . . . . . . . . . . . . Parts Damaged . | . . . . . . . . . . . . . . . Bothacking | -11 -10 -10 -10 -9 -8 -8 -8 -7 -7 -7 -7 -6 -5 -5 ------------ Run | Yrd Mat Min Exi Min Mat Gar Mat Fac Gar Fac Gar Fac Fac DSF Used RIF Installer 3 | . . . . . . 1 . . 1 . 1 . . . Threat Obfuscator 1 | . . . . . . . . . 1 . . . . . Patrol Navigation 1 | . . . . . . . . . . . 1 . . . Robots Hacked 4 | . . . . . . . . . . . . 4 . . Non-combat 3 | . . . . . . . . . . . . 3 . . Combat 1 | . . . . . . . . . . . . 1 . . Robot Hacks Applied 4 | . . . . . . . . . . . . 4 . . start_evac 1 | . . . . . . . . . . . . 1 . . ignore_repairs 1 | . . . . . . . . . . . . 1 . . formatsys_low 1 | . . . . . . . . . . . . 1 . . formatsys_high 1 | . . . . . . . . . . . . 1 . . Relay Couplers Released 17 | . . . . . . 3 . . 12 . . 2 . . Machine Destruction 14 | . . . . . . . . . 12 . . 2 . . Programmers 3 | . . . . . . 3 . . . . . . . . Attached 3 | . . . . . . . . . 1 . . 2 . . Fabnet Peak Effective % . | . . . . . . . . . . . . . . . Robots Rewired . | . . . . . . . . . . . . . . . Allies Hacked . | . . . . . . . . . . . . . . . Hacks Repelled . | . . . . . . . . . . . . . . . Allies | -11 -10 -10 -10 -9 -8 -8 -8 -7 -7 -7 -7 -6 -5 -5 -------- Run | Yrd Mat Min Exi Min Mat Gar Mat Fac Gar Fac Gar Fac Fac DSF Total Allies 7 | . . . . . . . . . 2 . . 5 . . Largest Group 3 | . . . . . . . . . 2 2 2 3 3 3 Highest-Rated Group 160 | . . . . . . . . . 160 160 160 93 93 93 Highest-Rated Ally 80 | . . . . . . . . . 80 80 80 80 31 31 Total Orders . | . . . . . . . . . . . . . . . Ally Attacks 58 | . . . . . . . . . . . 31 6 3 18 Total Damage 1426 | . . . . . . . . . . . 821 229 63 313 Kills 11 | . . . . . . . . . . . 8 2 1 . Allies Corrupted . | . . . . . . . . . . . . . . . Allies Melted . | . . . . . . . . . . . . . . . Intel | -11 -10 -10 -10 -9 -8 -8 -8 -7 -7 -7 -7 -6 -5 -5 ------- Run | Yrd Mat Min Exi Min Mat Gar Mat Fac Gar Fac Gar Fac Fac DSF Robot Analysis Total . | . . . . . . . . . . . . . . . Derelict Logs Recovered 3 | . . 2 . 1 . . . . . . . . . . Drone Launches . | . . . . . . . . . . . . . . . Drone Recoveries . | . . . . . . . . . . . . . . . Exploration | -11 -10 -10 -10 -9 -8 -8 -8 -7 -7 -7 -7 -6 -5 -5 ------------- Run | Yrd Mat Min Exi Min Mat Gar Mat Fac Gar Fac Gar Fac Fac DSF Turns Passed 11751 | 421 231 155 200 376 802 1286 2525 629 1457 114 761 2366 283 145 Spaces Moved 5529 | 221 238 157 226 317 492 700 1037 343 651 47 296 672 107 25 Core 18 | 17 . . . . . . . . . . . . . 1 Treads 1335 | . . . . . . . . . 189 47 296 672 107 24 Legs . | . . . . . . . . . . . . . . . Wheels 4176 | 204 238 157 226 317 492 700 1037 343 462 . . . . . Hover . | . . . . . . . . . . . . . . . Flight . | . . . . . . . . . . . . . . . Fastest Speed 50 | 50 80 80 80 90 120 90 120 115 130 240 240 240 240 320 Average Speed 150 | 77 80 80 84 90 120 118 135 129 163 240 240 266 261 415 Slowest Speed 2700 | 80 80 80 90 90 120 120 150 130 320 240 240 320 320 2700 Overloaded Moves . | . . . . . . . . . . . . . . . Propulsion Burnouts . | . . . . . . . . . . . . . . . Robots Hopped . | . . . . . . . . . . . . . . . Cave-ins Triggered . | . . . . . . . . . . . . . . . Exploration Rate (%) 35 | 8 37 41 61 62 45 69 52 8 63 3 42 13 2 33 Regions Visited 14 Branch Regions 3 Pre-discovered Areas . | . . . . . . . . . . . . . . . Known Exits Taken 5 | . . . . . 1 . 1 1 . 1 . . 1 . Unknown Exits Taken 6 | 1 1 1 1 1 . . . . . . . 1 . . Scrap Searched 5 | . . 1 . 4 . . . . . . . . . . Spaces Dug 27 | . . . . . . . 8 5 . . 2 12 . . Terrain Destroyed 189 | . . . . . 9 2 8 5 112 . 17 36 . . Melee 27 | . . . . . . . 8 5 . . 2 12 . . Projectile 13 | . . . . . 9 2 . . 1 . . 1 . . AOE 149 | . . . . . . . . . 111 . 15 23 . . Terrain Rammed . | . . . . . . . . . . . . . . . Walls Destroyed . | . . . . . . . . . . . . . . . Machines Disabled . | . . . . . . . . . . . . . . . Actions | -11 -10 -10 -10 -9 -8 -8 -8 -7 -7 -7 -7 -6 -5 -5 --------- Run | Yrd Mat Min Exi Min Mat Gar Mat Fac Gar Fac Gar Fac Fac DSF Total 8528 | 425 267 186 235 402 705 1146 2067 512 898 48 324 1151 112 50 Wait 2431 | 165 13 28 . 70 194 391 939 138 82 1 10 387 . 13 Move 5518 | 220 237 156 225 316 492 699 1036 343 650 47 295 671 106 25 Hop . | . . . . . . . . . . . . . . . Pick Up 91 | 7 5 1 2 2 9 . 25 7 17 . 2 11 3 . Fast Attach 14 | . . . 1 3 . 3 1 3 2 . . 1 . . Attach 50 | 5 1 1 1 . 4 2 9 3 5 . . 13 3 3 Detach 10 | . . . . . . 2 1 1 3 . . 2 . 1 Swap 32 | . 2 . 2 1 1 . 3 1 7 . 3 12 . . Drop 52 | . 2 . 4 6 5 3 7 7 12 . 2 4 . . Fire 188 | 28 7 . . 4 . . 38 4 51 . 10 38 . 8 Melee 66 | . . . . . . 6 8 5 33 . 2 12 . . Ram . | . . . . . . . . . . . . . . . Kick . | . . . . . . . . . . . . . . . Crush . | . . . . . . . . . . . . . . . Escape Stasis 76 | . . . . . . 40 . . 36 . . . . . Rewire . | . . . . . . . . . . . . . . . Trap . | . . . . . . . . . . . . . . . Miscellaneous . | . . . . . . . . . . . . . . . Route ------- -11/Scrapyard -10/Materials -10/Mines -10/Exiles -9/Mines -8/Materials (discovered 3 exits: *Fac x2 / Gar) -8/Garrison (discovered 3 exits: *Mat x3) -8/Materials (discovered 2 exits: *Fac x2) -7/Factory (discovered 2 exits: *Fac / Gar) -7/Garrison (discovered 2 exits: *Fac x2) -7/Factory -7/Garrison -6/Factory -5/Factory -5/DSF History --------- Turn | Location | Event 2 | -11/Scrapyard | Met Revision 17 76 | -11/Scrapyard | Discovered new exit (range 8) 422 | -11/Scrapyard | Entered Materials 423 | -10/Materials | Build established: Mutant 622 | -10/Materials | Discovered new exit (range 16) 653 | -10/Materials | Entered Mines 669 | -10/Mines | Met a Derelict bent on vengeance 698 | -10/Mines | Learned location of 1 exit from Materials 720 | -10/Mines | Learned location of 1 exit from Materials 804 | -10/Mines | Deemed a non-threat by the Exiles lab entrance 805 | -10/Mines | Discovered new exit (range 5) 808 | -10/Mines | Entered Exiles 827 | -10/Exiles | Met 8R-AWN 842 | -10/Exiles | Met EX-HEX 864 | -10/Exiles | Met EX-BIN 873 | -10/Exiles | Aligned with FarCom system 874 | -10/Exiles | Given EX-Vault access code 893 | -10/Exiles | Opened EX-Vault 897 | -10/Exiles | Found Latent Energy Streamer 921 | -10/Exiles | Found AWS/Autocannon 937 | -10/Exiles | Exiles lab attacked by MAIN.C 999 | -10/Exiles | Discovered new exit (range 10) 1008 | -10/Exiles | Left Exiles lab with AWS/Autocannon 1008 | -10/Exiles | Entered Mines 1091 | -9/Mines | Learned 2 Materials zone layouts 1107 | -9/Mines | Discovered new exit (range 9) 1138 | -9/Mines | Met a Derelict who couldn't figure out how to use a Trap Extractor 1307 | -9/Mines | Build established: Skirmisher 1384 | -9/Mines | Entered Materials 1384 | -8/Materials | Evolved 4 slots: Utility x3, Weapon x1 1385 | -8/Materials | Identified exit to Factory 2186 | -8/Materials | Identified exit to Garrison 2186 | -8/Materials | Entered Garrison 2498 | -8/Garrison | Triggered checkpoint 2592 | -8/Garrison | Triggered checkpoint 2753 | -8/Garrison | Discovered new exit (range 11) 2802 | -8/Garrison | Triggered checkpoint 3034 | -8/Garrison | Triggered checkpoint 3176 | -8/Garrison | Discovered new exit (range 10) 3192 | -8/Garrison | Installed Relay Interface Framework 3242 | -8/Garrison | Triggered checkpoint 3376 | -8/Garrison | Triggered checkpoint 3400 | -8/Garrison | Discovered new exit (range 15) 3472 | -8/Garrison | Entered Materials 4147 | -8/Materials | Discovered exit to Factory (range 5) 4689 | -8/Materials | AWS/Autocannon suddenly broke down 4835 | -8/Materials | Repaired Kinecellerator 5459 | -8/Materials | Build established: Scavenger-Gunner 5579 | -8/Materials | Repaired Hvy. Assault Rifle 5814 | -8/Materials | Build established: Mutant 5937 | -8/Materials | Discovered exit to Factory (range 5) 5997 | -8/Materials | Entered Factory 5997 | -7/Factory | Evolved 2 slots: Utility x2 6045 | -7/Factory | Discovered new exit (range 8) 6126 | -7/Factory | Identified exit to DSF 6626 | -7/Factory | Identified exit to Garrison 6626 | -7/Factory | Entered Garrison 6720 | -7/Garrison | Triggered checkpoint 6834 | -7/Garrison | Garrison Relay disabled 6983 | -7/Garrison | Triggered checkpoint 6997 | -7/Garrison | Triggered checkpoint 7051 | -7/Garrison | Destroyed 10 combat bots 7120 | -7/Garrison | Discovered new exit (range 12) 7129 | -7/Garrison | Build established: Assassin 7160 | -7/Garrison | Triggered checkpoint 7240 | -7/Garrison | Triggered checkpoint 7298 | -7/Garrison | Expanded RIF knowledge: Threat Obfuscation 7335 | -7/Garrison | Garrison Relay disabled 7366 | -7/Garrison | Discovered new exit (range 11) 7693 | -7/Garrison | Build established: Bothacker-Assassin 7804 | -7/Garrison | Triggered checkpoint 7939 | -7/Garrison | Found embedded Infiltrators 7966 | -7/Garrison | Garrison Relay disabled 8083 | -7/Garrison | Entered Factory 8083 | -7/Factory | Accompanied by 2 allies 8196 | -7/Factory | Identified exit to Garrison 8197 | -7/Factory | Entered Garrison 8197 | -7/Garrison | Accompanied by 2 allies 8389 | -7/Garrison | Triggered checkpoint 8646 | -7/Garrison | Expanded RIF knowledge: Patrol Navigation 8691 | -7/Garrison | Build established: Bothacker-Skirmisher 8732 | -7/Garrison | Discovered new exit (range 17) 8958 | -7/Garrison | Entered Factory 8958 | -6/Factory | Accompanied by 1 ally 8958 | -6/Factory | Evolved 2 slots: Power x1, Utility x1 9194 | -6/Factory | Lost 3 parts (1p2w) 10614 | -6/Factory | Spotted B-75 Beast 10722 | -6/Factory | Lost 4 parts (2p1u1w) 11099 | -6/Factory | Allied Derelicts emerged from ambush trap array 11184 | -6/Factory | Discovered new exit (range 20) 11324 | -6/Factory | Entered another Factory area 11324 | -5/Factory | Accompanied by 3 allies 11324 | -5/Factory | Evolved 2 slots: Utility x2 11353 | -5/Factory | Identified exit to DSF 11607 | -5/Factory | Entered DSF 11607 | -5/DSF | Accompanied by 3 allies 11669 | -5/DSF | Additional patrols routed to DSF 11745 | -5/DSF | Core integrity fell below 50% 11752 | -5/DSF | Self-destructed Last Messages --------------- 11718_ Deuterium Engine destroyed. 11719_ Imp. Heavy Treads destroyed. 11719_ Slug penetrates Wall. 11720_ Angular Momentum Engine destroyed. 11721_ Knocked back. 11722_ Penetrated by Slug. 11725_ Slug penetrates Wall. 11727_ Gatling Laser destroyed. 11728_ Penetrated by Slug. 11730_ Lyr. Light Armor Plating destroyed. 11730_ Knocked back. 11730_ Penetrated by Slug. 11731_ Acquired 14 matter. 11733_ Adv. Cooling System destroyed. 11733_ Force Field destroyed. 11734_ Adv. Visual Processing Unit destroyed. 11736_ Critical hit (Burn: +37). 11742_ Penetrated by Slug. 11749_ Knocked back. 11750_ Y-64 Sentinel Neutrino Core blasted off. Map ----- +----------------------------------------------------+ | ???????????????????????????????????????????????? | | ???????????????????????????????????????????????? | | ??????????????????????? ?????????????????????? | | ??????????????????????? !????????????????????? | | ??????????????????????? !????????????????????? | | ??????????????????????? !??????????? ???????? | | ??????????????????????? #??????????? #??????? | | ?????????????????????## ##?????????? !!?????? | | ?????????????????????# #?????????# !!?????? | | ?????????????????????? ????????? !!?????? | | ?????????????????????? ?????????? !??????? | | ?????????????????????? ?????????? !??????? | | ?????????????????????? !=*??????????# ??????? | | ??????????????????????# [%#??????????# ??????? | | ????????????????????### ![###????????# ##?????? | | ????????????????????#!! % [[#???????? =#?????? | | ????????????????????#!! [[#???????? =??????? | | ????????????????????#!Y g[#???????? =??????? | | ????????????????????#;*Hxg;##???????## ##?????? | | ????????????????????# g!#????????= =#?????? | | ????????????????????# % !!!#????????= =#?????? | | ????????????????????# [%!!########?# #??????? | | ????????????????????##; %*### #==### ###????? | | ????????????????????### ### #==## ""####?? | | ????????????????????# % """""#?? | | ????????????????????# @%% ""##"#?? | | ????????????????????# !!! # #==##"""""#????? | | ????????????????????# !!! #########"""""#????? | | ????????????????????###;#;#;#???????##"####????? | | ??????????????????????# # ##????????#"#???????? | | ??????????????????????# # #?????????#""???????? | | ??????????????????????? ??##?????????####??????? | | ??????????????????????? ???????????????????????? | | ??????????????????????? ???????????????????????? | | ??????????????????????? ???????????????????????? | | ???????????????????????#???????????????????????? | | | | | | | | | | | | | | | | | | | | | | | | | | | | | +----------------------------------------------------+ Best States ------------- Heat Dissipation 71 Energy Generation 28 Energy Capacity 950 Matter Stores 300 Matter Capacity 300 Sight Range 20 Terrain Scan Range 16 Terrain Scan Density 10 Additional Mass Support 12 Armor Coverage 300 Evasion (%) 50 Targeting Accuracy 8 Recoil Reduction 2 Matter Filtering 30 Kinecelleration 30 Offensive Hacking 10 Relay Coupler Types 2 Relay Coupler Value 51 Item Schematics ----------------- None Robot Schematics ------------------ None Fabricated ------------ Nothing Alien Tech Used ----------------- None Achievements -------------- Infiltrator Tank Challenges ------------ None Game ------ Seed SystemAssembledSaw Manual? 0 Play Time 01:18:01 Cumulative 44.2 hours Start 2024.08.17 @ 12:38:45 End 2024.08.17 @ 15:44:42 Sessions 3 Manual Loads 0 Difficulty Rogue Special Mode None Game No. 72 Rogue 68 Adventurer 4 Explorer 0 Win Type - Total 0 Types 0/0/0/0/0/0/0/0/0 Lore% 12 Gallery% 35 Achievement% 28 Wizard Run 0 Options --------- Layout 1 ASCII 0 Keyboard 0 Movement Mouse Keybinds 0 Fullscreen 2 Font 24/Smallcaps Map View 50x35 Zoom Use 0% Tactical HUD 1 Map Filters NONE Filters NONE Steam 1 RUN: 7864dba7-6ade-4a2b-83c7-ada77b0ec850